[Event "Early-Titled-Tuesday-Blitz-October-17-2023"]
[Site "Chess.com"]
[Date "2023.10.17"]
[Round "8"]
[White "JuniorJumper"]
[Black "Ranindu2003"]
[Result "0-1"]
[WhiteElo "2583"]
[BlackElo "2790"]
[TimeControl "180+1"]
[EndTime "9:34:09 PDT"]
[Termination "Ranindu2003 won by checkmate"]

1. d4 {[%clk 0:03:00.9]} 1... d5 {[%clk 0:02:59.7]} 2. c4 {[%clk 0:03:00.1]}
2... e6 {[%clk 0:03:00.3]} 3. Nc3 {[%clk 0:03:00.4]} 3... Nf6 {[%clk 0:03:00.6]}
4. cxd5 {[%clk 0:02:59.5]} 4... exd5 {[%clk 0:03:01.5]} 5. Bg5 {[%clk
0:03:00.2]} 5... Bb4 {[%clk 0:03:02.1]} 6. e3 {[%clk 0:02:56.4]} 6... h6 {[%clk
0:03:02.2]} 7. Bxf6 {[%clk 0:02:55.3]} 7... Qxf6 {[%clk 0:03:03.1]} 8. Bd3
{[%clk 0:02:55.4]} 8... c6 {[%clk 0:02:59.4]} 9. Qf3 {[%clk 0:02:55.5]} 9... Qg5
{[%clk 0:02:43.5]} 10. Ne2 {[%clk 0:02:49.1]} 10... O-O {[%clk 0:02:39.7]} 11.
Qg3 {[%clk 0:02:48.2]} 11... Qf6 {[%clk 0:02:37.1]} 12. Qf3 {[%clk 0:02:32.8]}
12... Qe7 {[%clk 0:02:27.1]} 13. O-O {[%clk 0:02:27.4]} 13... Nd7 {[%clk
0:02:26.2]} 14. Ng3 {[%clk 0:02:26.4]} 14... Nf6 {[%clk 0:02:24]} 15. Nf5 {[%clk
0:02:19.2]} 15... Bxf5 {[%clk 0:02:17.2]} 16. Qxf5 {[%clk 0:02:16.6]} 16... Rfe8
{[%clk 0:02:17.1]} 17. Ne2 {[%clk 0:02:12.9]} 17... Bd6 {[%clk 0:02:10.7]} 18.
a3 {[%clk 0:02:10.8]} 18... a5 {[%clk 0:02:10.1]} 19. Rac1 {[%clk 0:02:05.3]}
19... Rac8 {[%clk 0:02:06.5]} 20. Ng3 {[%clk 0:02:02]} 20... c5 {[%clk
0:01:47.2]} 21. Nh5 {[%clk 0:01:49.4]} 21... Ne4 {[%clk 0:01:41.7]} 22. Qxd5
{[%clk 0:01:49.4]} 22... Nd2 {[%clk 0:01:20.3]} 23. Rfd1 {[%clk 0:01:29.8]}
23... Rcd8 {[%clk 0:01:20.1]} 24. Qf5 {[%clk 0:01:06.3]} 24... g6 {[%clk
0:01:12.9]} 25. Nf6+ {[%clk 0:01:06.5]} 25... Kf8 {[%clk 0:01:02.5]} 26. Qh3
{[%clk 0:00:58.2]} 26... Qxf6 {[%clk 0:01:02.4]} 27. Rxd2 {[%clk 0:00:51]} 27...
cxd4 {[%clk 0:01:00.4]} 28. Rdc2 {[%clk 0:00:16.9]} 28... dxe3 {[%clk
0:00:51.8]} 29. fxe3 {[%clk 0:00:17.8]} 29... Qg5 {[%clk 0:00:48.8]} 30. e4
{[%clk 0:00:14.1]} 30... Bf4 {[%clk 0:00:41.5]} 31. Rf1 {[%clk 0:00:13.9]} 31...
Re7 {[%clk 0:00:34.3]} 32. Kh1 {[%clk 0:00:12.2]} 32... Kg7 {[%clk 0:00:32.7]}
33. Bc4 {[%clk 0:00:09.7]} 33... Be5 {[%clk 0:00:20.6]} 34. Bd5 {[%clk
0:00:09.3]} 34... Rdd7 {[%clk 0:00:18]} 35. Rcf2 {[%clk 0:00:09.6]} 35... f6
{[%clk 0:00:17.1]} 36. Qb3 {[%clk 0:00:08]} 36... h5 {[%clk 0:00:13.7]} 37. Qh3
{[%clk 0:00:04]} 37... Bd4 {[%clk 0:00:12.5]} 38. Rf3 {[%clk 0:00:03.9]} 38...
Be5 {[%clk 0:00:11.8]} 39. g3 {[%clk 0:00:04.4]} 39... Rc7 {[%clk 0:00:12]} 40.
Qg2 {[%clk 0:00:04.8]} 40... b6 {[%clk 0:00:10.1]} 41. h4 {[%clk 0:00:05.3]}
41... Qh6 {[%clk 0:00:10.1]} 42. Qf2 {[%clk 0:00:04.5]} 42... Rc5 {[%clk
0:00:10.2]} 43. Rxf6 {[%clk 0:00:04.8]} 43... Rcc7 {[%clk 0:00:06]} 44. Rf3
{[%clk 0:00:05.1]} 44... Kh7 {[%clk 0:00:05.2]} 45. Qe2 {[%clk 0:00:04.2]} 45...
Bg7 {[%clk 0:00:05.4]} 46. Rf7 {[%clk 0:00:04.2]} 46... Rxf7 {[%clk 0:00:05.2]}
47. Rxf7 {[%clk 0:00:05.1]} 47... Rxf7 {[%clk 0:00:05.5]} 48. Bxf7 {[%clk
0:00:06]} 48... Qc1+ {[%clk 0:00:06.2]} 49. Kg2 {[%clk 0:00:06.7]} 49... Qxb2
{[%clk 0:00:06.6]} 50. Qxb2 {[%clk 0:00:06.4]} 50... Bxb2 {[%clk 0:00:07.5]} 51.
a4 {[%clk 0:00:07.2]} 51... Kg7 {[%clk 0:00:08.3]} 52. Be8 {[%clk 0:00:07.6]}
52... Bd4 {[%clk 0:00:08.7]} 53. Kf3 {[%clk 0:00:08]} 53... Kf6 {[%clk
0:00:09.4]} 54. Ke2 {[%clk 0:00:07.7]} 54... Bc5 {[%clk 0:00:09.8]} 55. Kd3
{[%clk 0:00:08.1]} 55... Bd6 {[%clk 0:00:10.3]} 56. Kc4 {[%clk 0:00:08.7]} 56...
Bxg3 {[%clk 0:00:10.5]} 57. Kb5 {[%clk 0:00:09.5]} 57... Bxh4 {[%clk 0:00:10.2]}
58. Kxb6 {[%clk 0:00:09.8]} 58... Be1 {[%clk 0:00:10.8]} 59. e5+ {[%clk
0:00:09.7]} 59... Kxe5 {[%clk 0:00:11.3]} 60. Bxg6 {[%clk 0:00:10.2]} 60... h4
{[%clk 0:00:11.9]} 61. Be8 {[%clk 0:00:10]} 61... h3 {[%clk 0:00:11.7]} 62. Bc6
{[%clk 0:00:10.6]} 62... Kf4 {[%clk 0:00:11.4]} 63. Kc5 {[%clk 0:00:11.4]} 63...
Kg3 {[%clk 0:00:11.8]} 64. Kd4 {[%clk 0:00:12.1]} 64... Kf2 {[%clk 0:00:12.5]}
65. Kd3 {[%clk 0:00:12.1]} 65... Kg1 {[%clk 0:00:12.6]} 66. Ke2 {[%clk
0:00:12.6]} 66... Bb4 {[%clk 0:00:13.3]} 67. Bd5 {[%clk 0:00:07.8]} 67... h2
{[%clk 0:00:13.4]} 68. Bh1 {[%clk 0:00:07.2]} 68... Kxh1 {[%clk 0:00:12.1]} 69.
Kf2 {[%clk 0:00:05.6]} 69... Bc5+ {[%clk 0:00:12.4]} 70. Kf1 {[%clk 0:00:06]}
70... Ba7 {[%clk 0:00:13]} 71. Ke2 {[%clk 0:00:05.3]} 71... Kg1 {[%clk
0:00:13.9]} 72. Kd3 {[%clk 0:00:05.8]} 72... h1=Q {[%clk 0:00:14.8]} 73. Kc4
{[%clk 0:00:06.7]} 73... Qc6+ {[%clk 0:00:14.9]} 74. Kb3 {[%clk 0:00:07.3]}
74... Qd5+ {[%clk 0:00:13.6]} 75. Kc3 {[%clk 0:00:07.6]} 75... Qd4+ {[%clk
0:00:13.8]} 76. Kb3 {[%clk 0:00:08.2]} 76... Qb4+ {[%clk 0:00:14.2]} 77. Kc2
{[%clk 0:00:08.8]} 77... Qa3 {[%clk 0:00:14.6]} 78. Kb1 {[%clk 0:00:08.8]} 78...
Kf2 {[%clk 0:00:14.4]} 79. Kc2 {[%clk 0:00:09.4]} 79... Bd4 {[%clk 0:00:14.1]}
80. Kb1 {[%clk 0:00:10.3]} 80... Qb2# {[%clk 0:00:14.3]} 0-1

[Event "Early-Titled-Tuesday-Blitz-October-17-2023"]
[Site "Chess.com"]
[Date "2023.10.17"]
[Round "8"]
[White "Aygehovit1992"]
[Black "Szczor"]
[Result "1/2-1/2"]
[WhiteElo "2703"]
[BlackElo "2557"]
[TimeControl "180+1"]
[EndTime "9:34:31 PDT"]
[Termination "Game drawn by repetition"]

1. e4 {[%clk 0:02:29.1]} 1... c5 {[%clk 0:02:59.7]} 2. Nc3 {[%clk 0:02:24.9]}
2... Nc6 {[%clk 0:02:59.2]} 3. Bb5 {[%clk 0:02:24.6]} 3... Nd4 {[%clk
0:02:59.1]} 4. Nf3 {[%clk 0:02:25.1]} 4... Nxb5 {[%clk 0:02:59]} 5. Nxb5 {[%clk
0:02:25.3]} 5... a6 {[%clk 0:02:59.5]} 6. Nc3 {[%clk 0:02:26]} 6... e6 {[%clk
0:02:57.3]} 7. d4 {[%clk 0:02:25.9]} 7... Qc7 {[%clk 0:02:57.1]} 8. Bg5 {[%clk
0:02:24.6]} 8... b5 {[%clk 0:02:54.3]} 9. O-O {[%clk 0:02:22.2]} 9... b4 {[%clk
0:02:51.6]} 10. Na4 {[%clk 0:02:22.1]} 10... Bb7 {[%clk 0:02:46.7]} 11. Re1
{[%clk 0:02:21.3]} 11... cxd4 {[%clk 0:02:31.4]} 12. Qxd4 {[%clk 0:02:16.2]}
12... Bc6 {[%clk 0:02:04.1]} 13. Nb6 {[%clk 0:02:03]} 13... Rb8 {[%clk
0:02:03.8]} 14. Nc4 {[%clk 0:02:02.7]} 14... Bb5 {[%clk 0:02:00.6]} 15. Ne3
{[%clk 0:02:02.3]} 15... Qc5 {[%clk 0:01:53.7]} 16. Rad1 {[%clk 0:01:45.3]}
16... Qxd4 {[%clk 0:01:38]} 17. Nxd4 {[%clk 0:01:46.2]} 17... Bc5 {[%clk
0:01:38]} 18. Nxb5 {[%clk 0:01:20.4]} 18... axb5 {[%clk 0:01:38.9]} 19. Bf4
{[%clk 0:01:16.4]} 19... Rc8 {[%clk 0:01:38.7]} 20. Bd6 {[%clk 0:01:11.3]} 20...
Ne7 {[%clk 0:01:34.3]} 21. Bxc5 {[%clk 0:01:00.1]} 21... Rxc5 {[%clk 0:01:35.2]}
22. Rd6 {[%clk 0:01:00.1]} 22... Nc6 {[%clk 0:01:08.3]} 23. Red1 {[%clk
0:00:59.3]} 23... Ne5 {[%clk 0:01:08.6]} 24. f4 {[%clk 0:00:56.9]} 24... Nc4
{[%clk 0:01:08.7]} 25. Rxd7 {[%clk 0:00:50.2]} 25... O-O {[%clk 0:00:43.2]} 26.
Nxc4 {[%clk 0:00:49.8]} 26... Rxc4 {[%clk 0:00:44.1]} 27. R7d4 {[%clk
0:00:44.8]} 27... Rxc2 {[%clk 0:00:39.8]} 28. Rxb4 {[%clk 0:00:44.8]} 28... g5
{[%clk 0:00:31]} 29. fxg5 {[%clk 0:00:43.8]} 29... Rfc8 {[%clk 0:00:28.7]} 30.
Rd3 {[%clk 0:00:19.7]} 30... Re2 {[%clk 0:00:26.8]} 31. Rc3 {[%clk 0:00:10.5]}
31... Rd8 {[%clk 0:00:24.1]} 32. h3 {[%clk 0:00:10.3]} 32... Rdd2 {[%clk
0:00:15.4]} 33. Rg3 {[%clk 0:00:09.1]} 33... Rxb2 {[%clk 0:00:13.8]} 34. Rxb2
{[%clk 0:00:09.3]} 34... Rxb2 {[%clk 0:00:14.7]} 35. a3 {[%clk 0:00:09.9]} 35...
Kg7 {[%clk 0:00:08]} 36. Rf3 {[%clk 0:00:05.8]} 36... b4 {[%clk 0:00:05.4]} 37.
axb4 {[%clk 0:00:05.5]} 37... Rxb4 {[%clk 0:00:06.3]} 38. Rf4 {[%clk 0:00:05.6]}
38... e5 {[%clk 0:00:05.2]} 39. Rg4 {[%clk 0:00:05.6]} 39... Kg6 {[%clk
0:00:05.7]} 40. Kh2 {[%clk 0:00:05.8]} 40... Rb3 {[%clk 0:00:05.6]} 41. h4
{[%clk 0:00:05.7]} 41... Re3 {[%clk 0:00:05.1]} 42. g3 {[%clk 0:00:02.6]} 42...
Kh5 {[%clk 0:00:04.8]} 43. g6 {[%clk 0:00:03]} 43... hxg6 {[%clk 0:00:02.7]} 44.
Rg5+ {[%clk 0:00:03.4]} 44... Kh6 {[%clk 0:00:03.3]} 45. Rxe5 {[%clk 0:00:04.1]}
45... Kg7 {[%clk 0:00:03.8]} 46. Kh3 {[%clk 0:00:04]} 46... Kf6 {[%clk
0:00:04.3]} 47. Re8 {[%clk 0:00:04]} 47... Kg7 {[%clk 0:00:04.8]} 48. Kg4 {[%clk
0:00:04.2]} 48... Re2 {[%clk 0:00:02.5]} 49. Kf3 {[%clk 0:00:04.1]} 49... Re1
{[%clk 0:00:03.1]} 50. e5 {[%clk 0:00:03.6]} 50... Rf1+ {[%clk 0:00:03.7]} 51.
Ke2 {[%clk 0:00:03.2]} 51... Ra1 {[%clk 0:00:04]} 52. Re7 {[%clk 0:00:03.2]}
52... Kf8 {[%clk 0:00:03.2]} 53. Rc7 {[%clk 0:00:03.3]} 53... Ra5 {[%clk
0:00:03.7]} 54. Rc8+ {[%clk 0:00:03.2]} 54... Ke7 {[%clk 0:00:03.3]} 55. Rc7+
{[%clk 0:00:03.5]} 55... Ke6 {[%clk 0:00:03.9]} 56. Rc6+ {[%clk 0:00:03.2]}
56... Kxe5 {[%clk 0:00:04.2]} 57. Kf3 {[%clk 0:00:03.7]} 57... Kf5 {[%clk
0:00:04.1]} 58. g4+ {[%clk 0:00:03.4]} 58... Ke5 {[%clk 0:00:04.6]} 59. Rc7
{[%clk 0:00:03.4]} 59... Ra3+ {[%clk 0:00:04.9]} 60. Kf2 {[%clk 0:00:03.4]}
60... f5 {[%clk 0:00:05.4]} 61. gxf5 {[%clk 0:00:03.6]} 61... gxf5 {[%clk
0:00:06]} 62. h5 {[%clk 0:00:03.9]} 62... Kf4 {[%clk 0:00:06.4]} 63. h6 {[%clk
0:00:04.2]} 63... Ra2+ {[%clk 0:00:06.5]} 64. Kg1 {[%clk 0:00:04.3]} 64... Ra1+
{[%clk 0:00:06.2]} 65. Kg2 {[%clk 0:00:04.3]} 65... Ra2+ {[%clk 0:00:06.6]} 66.
Kh3 {[%clk 0:00:04.7]} 66... Ra3+ {[%clk 0:00:07.1]} 67. Kh4 {[%clk 0:00:04.9]}
67... Ra1 {[%clk 0:00:07.2]} 68. Kh5 {[%clk 0:00:05.5]} 68... Rh1+ {[%clk
0:00:06.1]} 69. Kg6 {[%clk 0:00:06]} 69... Rg1+ {[%clk 0:00:06.5]} 70. Kf6
{[%clk 0:00:06.5]} 70... Rh1 {[%clk 0:00:06.8]} 71. Rc4+ {[%clk 0:00:06.5]}
71... Ke3 {[%clk 0:00:07.2]} 72. Kg7 {[%clk 0:00:06]} 72... f4 {[%clk
0:00:06.8]} 73. Rc3+ {[%clk 0:00:05.3]} 73... Ke2 {[%clk 0:00:06.8]} 74. Rc2+
{[%clk 0:00:05.5]} 74... Ke3 {[%clk 0:00:06.9]} 75. Rc3+ {[%clk 0:00:05.4]}
75... Ke2 {[%clk 0:00:07.2]} 76. Ra3 {[%clk 0:00:05.3]} 76... f3 {[%clk
0:00:07.1]} 77. Ra2+ {[%clk 0:00:05.8]} 77... Ke3 {[%clk 0:00:07.6]} 78. Ra3+
{[%clk 0:00:06.2]} 78... Ke2 {[%clk 0:00:08.1]} 79. h7 {[%clk 0:00:07.1]} 79...
f2 {[%clk 0:00:07.9]} 80. Ra2+ {[%clk 0:00:07.4]} 80... Ke3 {[%clk 0:00:08.4]}
81. Ra3+ {[%clk 0:00:07.2]} 81... Ke2 {[%clk 0:00:08.9]} 82. Ra2+ {[%clk
0:00:07.5]} 82... Kf3 {[%clk 0:00:08.9]} 83. Ra3+ {[%clk 0:00:06.8]} 83... Ke4
{[%clk 0:00:08.7]} 84. Ra4+ {[%clk 0:00:06.6]} 84... Ke5 {[%clk 0:00:09]} 85.
Ra5+ {[%clk 0:00:07.1]} 85... Ke6 {[%clk 0:00:09.2]} 86. Ra6+ {[%clk 0:00:07.7]}
86... Ke5 {[%clk 0:00:09]} 87. Ra5+ {[%clk 0:00:07.9]} 87... Ke4 {[%clk
0:00:09.1]} 88. Ra4+ {[%clk 0:00:08.1]} 88... Ke3 {[%clk 0:00:07.9]} 89. Ra3+
{[%clk 0:00:08.5]} 89... Ke4 {[%clk 0:00:06.1]} 90. Ra4+ {[%clk 0:00:08.5]}
1/2-1/2

[Event "Early-Titled-Tuesday-Blitz-October-17-2023"]
[Site "Chess.com"]
[Date "2023.10.17"]
[Round "9"]
[White "lolo9292"]
[Black "Eagle_2019"]
[Result "0-1"]
[WhiteElo "2217"]
[BlackElo "2698"]
[TimeControl "180+1"]
[EndTime "9:42:58 PDT"]
[Termination "Eagle_2019 won by resignation"]

1. Nf3 {[%clk 0:03:00.9]} 1... d5 {[%clk 0:02:59.3]} 2. e3 {[%clk 0:02:59.8]}
2... Nf6 {[%clk 0:02:59]} 3. c4 {[%clk 0:03:00.4]} 3... c6 {[%clk 0:02:59]} 4.
Nc3 {[%clk 0:02:59.3]} 4... e6 {[%clk 0:02:58.9]} 5. b3 {[%clk 0:02:57]} 5...
Nbd7 {[%clk 0:02:58.9]} 6. Bb2 {[%clk 0:02:55]} 6... Bd6 {[%clk 0:02:58.7]} 7.
d4 {[%clk 0:02:54.7]} 7... O-O {[%clk 0:02:58.6]} 8. Bd3 {[%clk 0:02:54.4]} 8...
e5 {[%clk 0:02:55.3]} 9. cxd5 {[%clk 0:02:54.1]} 9... cxd5 {[%clk 0:02:52.7]}
10. Nb5 {[%clk 0:02:50.9]} 10... Bb4+ {[%clk 0:02:51.9]} 11. Nd2 {[%clk
0:02:50.1]} 11... exd4 {[%clk 0:02:40.1]} 12. Nxd4 {[%clk 0:02:48.5]} 12... Nc5
{[%clk 0:02:35.8]} 13. Bc2 {[%clk 0:02:12.4]} 13... Nfe4 {[%clk 0:02:34.6]} 0-1

[Event "Early-Titled-Tuesday-Blitz-October-17-2023"]
[Site "Chess.com"]
[Date "2023.10.17"]
[Round "9"]
[White "Cheer_Down"]
[Black "Kildepiotr"]
[Result "0-1"]
[WhiteElo "2526"]
[BlackElo "2647"]
[TimeControl "180+1"]
[EndTime "9:44:03 PDT"]
[Termination "Kildepiotr won by resignation"]

1. e4 {[%clk 0:03:00.9]} 1... g6 {[%clk 0:02:57.7]} 2. d4 {[%clk 0:03:00.3]}
2... Bg7 {[%clk 0:02:58.1]} 3. Nf3 {[%clk 0:02:59.6]} 3... c6 {[%clk 0:02:58.4]}
4. Nc3 {[%clk 0:02:53.7]} 4... d6 {[%clk 0:02:58.1]} 5. a4 {[%clk 0:02:49.4]}
5... Nf6 {[%clk 0:02:56.5]} 6. Be2 {[%clk 0:02:48.2]} 6... O-O {[%clk
0:02:56.3]} 7. O-O {[%clk 0:02:47.7]} 7... Nbd7 {[%clk 0:02:57]} 8. h3 {[%clk
0:02:43.6]} 8... e5 {[%clk 0:02:57.1]} 9. dxe5 {[%clk 0:02:43.2]} 9... dxe5
{[%clk 0:02:58]} 10. Bc4 {[%clk 0:02:42.9]} 10... Qe7 {[%clk 0:02:58]} 11. a5
{[%clk 0:02:40.5]} 11... Nc5 {[%clk 0:02:53.7]} 12. b3 {[%clk 0:02:28.7]} 12...
Nfxe4 {[%clk 0:02:43.4]} 13. Nxe4 {[%clk 0:02:25.8]} 13... Nxe4 {[%clk
0:02:44.3]} 14. Ba3 {[%clk 0:02:24.8]} 14... c5 {[%clk 0:02:44.7]} 15. a6 {[%clk
0:02:06.6]} 15... Nc3 {[%clk 0:02:39.2]} 16. Qe1 {[%clk 0:02:05.8]} 16... e4
{[%clk 0:02:39.3]} 17. Nd2 {[%clk 0:01:56.9]} 17... b5 {[%clk 0:02:28.9]} 18.
Be2 {[%clk 0:01:50.6]} 18... b4 {[%clk 0:02:28.9]} 0-1

[Event "Early-Titled-Tuesday-Blitz-October-17-2023"]
[Site "Chess.com"]
[Date "2023.10.17"]
[Round "9"]
[White "Resignify"]
[Black "Mr_Lion22"]
[Result "0-1"]
[WhiteElo "2345"]
[BlackElo "2482"]
[TimeControl "180+1"]
[EndTime "9:44:32 PDT"]
[Termination "Mr_Lion22 won by resignation"]

1. e4 {[%clk 0:03:00.9]} 1... c5 {[%clk 0:02:59.6]} 2. Nc3 {[%clk 0:03:00.6]}
2... d6 {[%clk 0:02:55.8]} 3. g3 {[%clk 0:03:00.7]} 3... Nf6 {[%clk 0:02:56]} 4.
Bg2 {[%clk 0:03:01]} 4... Nc6 {[%clk 0:02:55.6]} 5. d3 {[%clk 0:03:01.1]} 5...
g6 {[%clk 0:02:55]} 6. f4 {[%clk 0:03:01.2]} 6... Bg7 {[%clk 0:02:55.3]} 7. Nf3
{[%clk 0:03:01.4]} 7... O-O {[%clk 0:02:55.8]} 8. O-O {[%clk 0:03:01.6]} 8...
Rb8 {[%clk 0:02:54.5]} 9. a3 {[%clk 0:03:00.6]} 9... b5 {[%clk 0:02:54.1]} 10.
Rb1 {[%clk 0:03:00.6]} 10... b4 {[%clk 0:02:53.6]} 11. axb4 {[%clk 0:03:01.5]}
11... cxb4 {[%clk 0:02:53.8]} 12. Na4 {[%clk 0:02:59]} 12... Nd7 {[%clk
0:02:46.8]} 13. b3 {[%clk 0:02:56]} 13... Nc5 {[%clk 0:02:45.7]} 14. Nxc5 {[%clk
0:02:52.9]} 14... dxc5 {[%clk 0:02:46.6]} 15. Bb2 {[%clk 0:02:48.8]} 15... Bxb2
{[%clk 0:02:45.8]} 16. Rxb2 {[%clk 0:02:49]} 16... Bg4 {[%clk 0:02:46.6]} 17.
Ra2 {[%clk 0:02:44.9]} 17... a5 {[%clk 0:02:40.6]} 18. Qa1 {[%clk 0:02:39.6]}
18... Bxf3 {[%clk 0:02:38.7]} 19. Bxf3 {[%clk 0:02:39.3]} 19... Nd4 {[%clk
0:02:37]} 20. Rf2 {[%clk 0:02:01.4]} 20... Qb6 {[%clk 0:02:30.1]} 21. Rxa5
{[%clk 0:01:53.7]} 21... c4 {[%clk 0:02:30.5]} 22. Kg2 {[%clk 0:01:40.8]} 22...
cxb3 {[%clk 0:02:27.9]} 23. Ra6 {[%clk 0:01:29.4]} 23... b2 {[%clk 0:02:25.8]}
0-1

[Event "Early-Titled-Tuesday-Blitz-October-17-2023"]
[Site "Chess.com"]
[Date "2023.10.17"]
[Round "9"]
[White "Bilan_Danila"]
[Black "Jojo_898"]
[Result "1-0"]
[WhiteElo "2566"]
[BlackElo "2351"]
[TimeControl "180+1"]
[EndTime "9:44:34 PDT"]
[Termination "Bilan_Danila won by resignation"]

1. d4 {[%clk 0:02:54.2]} 1... Nf6 {[%clk 0:02:59.3]} 2. Nf3 {[%clk 0:02:54.1]}
2... e6 {[%clk 0:02:58]} 3. g3 {[%clk 0:02:52.9]} 3... b6 {[%clk 0:02:58.2]} 4.
Bg2 {[%clk 0:02:53.3]} 4... Bb7 {[%clk 0:02:58.9]} 5. O-O {[%clk 0:02:54.2]}
5... Be7 {[%clk 0:02:59.2]} 6. c4 {[%clk 0:02:54.8]} 6... O-O {[%clk 0:02:59.4]}
7. d5 {[%clk 0:02:55.4]} 7... c5 {[%clk 0:02:57.1]} 8. d6 {[%clk 0:02:50.5]}
8... Bxd6 {[%clk 0:02:57]} 9. Qxd6 {[%clk 0:02:50.4]} 9... Nc6 {[%clk
0:02:57.9]} 10. Nc3 {[%clk 0:02:44.7]} 10... Re8 {[%clk 0:02:53.3]} 11. Ne5
{[%clk 0:02:33.5]} 11... Nxe5 {[%clk 0:02:49.6]} 12. Qxe5 {[%clk 0:02:26.7]}
12... Bxg2 {[%clk 0:02:46.2]} 13. Kxg2 {[%clk 0:02:27.6]} 13... d5 {[%clk
0:02:46.6]} 14. Bg5 {[%clk 0:02:19.4]} 14... dxc4 {[%clk 0:02:46.2]} 15. Rad1
{[%clk 0:02:05.7]} 15... Qe7 {[%clk 0:02:44.5]} 16. Bxf6 {[%clk 0:01:45.8]}
16... gxf6 {[%clk 0:02:37]} 17. Qe4 {[%clk 0:01:41.2]} 17... f5 {[%clk
0:02:33.8]} 18. Qxc4 {[%clk 0:01:41.2]} 18... Qb7+ {[%clk 0:02:27]} 19. Kg1
{[%clk 0:01:37.8]} 19... a6 {[%clk 0:02:24]} 20. e4 {[%clk 0:01:29.8]} 20...
fxe4 {[%clk 0:02:20.7]} 21. Nxe4 {[%clk 0:01:25.7]} 21... b5 {[%clk 0:02:19.8]}
22. Nf6+ {[%clk 0:01:15.6]} 1-0

[Event "Early-Titled-Tuesday-Blitz-October-17-2023"]
[Site "Chess.com"]
[Date "2023.10.17"]
[Round "9"]
[White "nitpicker"]
[Black "NM_Antelacus"]
[Result "1/2-1/2"]
[WhiteElo "2241"]
[BlackElo "2087"]
[TimeControl "180+1"]
[EndTime "9:44:48 PDT"]
[Termination "Game drawn by repetition"]

1. d4 {[%clk 0:03:00.9]} 1... Nf6 {[%clk 0:02:59.1]} 2. c4 {[%clk 0:03:00.7]}
2... e6 {[%clk 0:02:59]} 3. g3 {[%clk 0:03:00.3]} 3... Bb4+ {[%clk 0:02:57.2]}
4. Bd2 {[%clk 0:02:59.7]} 4... Qe7 {[%clk 0:02:56.9]} 5. Bg2 {[%clk 0:02:58.7]}
5... O-O {[%clk 0:02:56]} 6. Nf3 {[%clk 0:02:58.9]} 6... d5 {[%clk 0:02:52.7]}
7. Qc2 {[%clk 0:02:57.2]} 7... c6 {[%clk 0:02:49.8]} 8. a3 {[%clk 0:02:54.4]}
8... Bxd2+ {[%clk 0:02:48.8]} 9. Nbxd2 {[%clk 0:02:55.3]} 9... Nbd7 {[%clk
0:02:47.8]} 10. O-O {[%clk 0:02:53.1]} 10... b6 {[%clk 0:02:35.2]} 11. Rfe1
{[%clk 0:02:50.3]} 11... Bb7 {[%clk 0:02:32.8]} 12. e4 {[%clk 0:02:46.5]} 12...
dxe4 {[%clk 0:02:32.5]} 13. Nxe4 {[%clk 0:02:46.8]} 13... Nxe4 {[%clk
0:02:30.6]} 14. Qxe4 {[%clk 0:02:47.3]} 14... Nf6 {[%clk 0:02:28.5]} 15. Qh4
{[%clk 0:02:44.7]} 15... Qd6 {[%clk 0:02:15.8]} 16. Rad1 {[%clk 0:02:35.6]}
16... c5 {[%clk 0:02:10]} 17. dxc5 {[%clk 0:02:24.9]} 17... Qxc5 {[%clk
0:02:09.2]} 18. Re5 {[%clk 0:02:10.6]} 18... Qc7 {[%clk 0:02:06.9]} 19. Rg5
{[%clk 0:02:06.9]} 19... Ne4 {[%clk 0:01:50.7]} 20. Rh5 {[%clk 0:01:48]} 20...
Nf6 {[%clk 0:01:47.9]} 21. Rg5 {[%clk 0:01:25.6]} 21... Ne4 {[%clk 0:01:46.9]}
22. Rh5 {[%clk 0:01:22.4]} 22... Nf6 {[%clk 0:01:46.2]} 23. Rg5 {[%clk
0:01:22.6]} 1/2-1/2

[Event "Early-Titled-Tuesday-Blitz-October-17-2023"]
[Site "Chess.com"]
[Date "2023.10.17"]
[Round "9"]
[White "Sofia_Blokhin"]
[Black "MerryPoppies"]
[Result "0-1"]
[WhiteElo "2258"]
[BlackElo "2145"]
[TimeControl "180+1"]
[EndTime "9:45:15 PDT"]
[Termination "MerryPoppies won by resignation"]

1. d4 {[%clk 0:02:31.5]} 1... d5 {[%clk 0:02:59.7]} 2. c4 {[%clk 0:02:31.2]}
2... e5 {[%clk 0:02:59.1]} 3. dxe5 {[%clk 0:02:30]} 3... d4 {[%clk 0:02:59.2]}
4. a3 {[%clk 0:02:28.7]} 4... a5 {[%clk 0:02:57.8]} 5. e3 {[%clk 0:02:28.7]}
5... Nc6 {[%clk 0:02:46.3]} 6. Nf3 {[%clk 0:02:27.5]} 6... Bc5 {[%clk
0:02:46.1]} 7. exd4 {[%clk 0:02:24.3]} 7... Bxd4 {[%clk 0:02:46.1]} 8. Nxd4
{[%clk 0:02:21.9]} 8... Qxd4 {[%clk 0:02:45.9]} 9. Qxd4 {[%clk 0:02:17.1]} 9...
Nxd4 {[%clk 0:02:45.8]} 10. Kd1 {[%clk 0:02:09]} 10... Bg4+ {[%clk 0:02:35]} 11.
f3 {[%clk 0:02:07.4]} 11... Bf5 {[%clk 0:02:07.1]} 12. Be3 {[%clk 0:01:59.4]}
12... Nb3 {[%clk 0:02:02.3]} 13. g4 {[%clk 0:01:52.1]} 13... Bg6 {[%clk
0:01:55.7]} 14. f4 {[%clk 0:01:44.9]} 14... Be4 {[%clk 0:01:51.7]} 15. Nd2
{[%clk 0:01:33.7]} 15... O-O-O {[%clk 0:01:39.1]} 16. Bh3 {[%clk 0:01:25]} 16...
Bxh1 {[%clk 0:01:29.1]} 17. Rb1 {[%clk 0:01:17.4]} 17... Be4 {[%clk 0:01:23.6]}
0-1

[Event "Early-Titled-Tuesday-Blitz-October-17-2023"]
[Site "Chess.com"]
[Date "2023.10.17"]
[Round "9"]
[White "Gyulamiryan-koryun"]
[Black "ivana_999"]
[Result "1-0"]
[WhiteElo "1950"]
[BlackElo "2079"]
[TimeControl "180+1"]
[EndTime "9:45:26 PDT"]
[Termination "Gyulamiryan-koryun won by resignation"]

1. e4 {[%clk 0:02:15]} 1... e6 {[%clk 0:02:54.5]} 2. d4 {[%clk 0:02:14.3]} 2...
d5 {[%clk 0:02:54.8]} 3. exd5 {[%clk 0:02:15.2]} 3... exd5 {[%clk 0:02:55.7]} 4.
Nf3 {[%clk 0:02:15.4]} 4... Bd6 {[%clk 0:02:55.6]} 5. c3 {[%clk 0:02:14.9]} 5...
Ne7 {[%clk 0:02:55.3]} 6. Bd3 {[%clk 0:02:15.4]} 6... Nbc6 {[%clk 0:02:55.4]} 7.
Bg5 {[%clk 0:02:13.7]} 7... f6 {[%clk 0:02:55]} 8. Bh4 {[%clk 0:02:12.5]} 8...
Bg4 {[%clk 0:02:55.4]} 9. Nbd2 {[%clk 0:02:11.4]} 9... Qd7 {[%clk 0:02:55.6]}
10. Qc2 {[%clk 0:02:10.8]} 10... g5 {[%clk 0:02:54.5]} 11. Bg3 {[%clk
0:02:10.1]} 11... O-O-O {[%clk 0:02:52.7]} 12. O-O-O {[%clk 0:02:04.4]} 12...
Bxg3 {[%clk 0:02:43.9]} 13. hxg3 {[%clk 0:02:03.7]} 13... Bf5 {[%clk 0:02:44]}
14. Rh6 {[%clk 0:01:58.6]} 14... Bxd3 {[%clk 0:02:36.6]} 15. Qxd3 {[%clk
0:01:58.2]} 15... Ng8 {[%clk 0:02:36.8]} 16. Rhh1 {[%clk 0:01:53.6]} 16... Nge7
{[%clk 0:02:35.7]} 17. Rxh7 {[%clk 0:01:51.2]} 17... Qf5 {[%clk 0:02:30.7]} 18.
Qxf5+ {[%clk 0:01:46.1]} 18... Nxf5 {[%clk 0:02:31.6]} 19. Rdh1 {[%clk 0:01:40]}
19... Rxh7 {[%clk 0:02:28.9]} 20. Rxh7 {[%clk 0:01:39.6]} 20... Nce7 {[%clk
0:02:29.1]} 21. Rf7 {[%clk 0:01:37.6]} 21... Rd6 {[%clk 0:02:22.5]} 22. g4
{[%clk 0:01:33.2]} 22... Re6 {[%clk 0:01:50.3]} 23. gxf5 {[%clk 0:01:31.1]}
23... Nxf5 {[%clk 0:01:51.2]} 24. Kd1 {[%clk 0:01:20.1]} 24... b6 {[%clk
0:01:37.3]} 25. Nxg5 {[%clk 0:01:15]} 25... fxg5 {[%clk 0:01:31.7]} 26. Rxf5
{[%clk 0:01:14.4]} 1-0